[Event "ISR-chT 2020"]
[Site "Israel"]
[Date "2020.02.14"]
[Round "7.15"]
[White "Kuprijanov, Anatoly"]
[Black "Bagrationi, Alexander"]
[Result "1-0"]
[ECO "E74"]
[WhiteElo "2238"]
[BlackElo "2491"]
[Annotator "RC"]
[PlyCount "163"]
[EventDate "2020.01.10"]
[EventType "team-tourn"]
[EventCountry "ISR"]
[SourceTitle "playchess.com"]
[Source "ChessBase"]
[SourceQuality "1"]
[TimeControl "40/5400+30:1800+30"]

1. d4 {[%emt 0:04:06]} Nf6 {[%emt 0:00:01]} 2. c4 {[%emt 0:00:05]} g6 {[%emt 0:03:22]} 3. Nc3 {[%emt 0:00:26]} Bg7 {[%emt 0:00:05]} 4. e4 {[%emt 0:00:09]} O-O {[%emt 0:00:05]} 5. Be2 {[%emt 0:01:51]} d6 {[%emt 0:00:09]} 6. Bg5 {[%emt 0:00:49]} c5 {[%emt 0:03:22]} 7. dxc5 {[%emt 0:12:36]} Qa5 {[%emt 0:00:59]} 8. Qd2 {[%emt 0:01:07]} dxc5 {[%emt 0:06:52]} 9. e5 {[%emt 0:07:23]} Rd8 {[%emt 0:02:46]} 10. Qe3 {[%emt 0:00:10]} Ng4 {[%emt 0:01:21]} 11. Bxg4 {[%emt 0:00:06]} Bxg4 {[%emt 0:00:03]} 12. Bxe7 {[%emt 0:11:19]} Nc6 {[%emt 0:04:22]} 13. Bxd8 {[%emt 0:04:35]} Rxd8 {[%emt 0:01:55]} 14. Nge2 {[%emt 0:00:06]} Nb4 {[%emt 0:08:04]} 15. O-O {[%emt 0:00:23]} Nc2 {[%emt 0:00:05]} 16. Qe4 {[%emt 0:00:14]} Bf5 {[%emt 0:02:14]} 17. Qxb7 {[%emt 0:00:11]} Nxa1 {[%emt 0:00:07]} 18. Rxa1 {[%emt 0:00:04]} Bxe5 {[%emt 0:00:10]} 19. Qe7 {[%emt 0:05:55]} Bd6 {[%emt 0:16:39]} 20. Qe3 {[%emt 0:06:06]} Bd3 {[%emt 0:10:13]} 21. Rd1 {[%emt 0:13:40]} Bxc4 {[%emt 0:00:47]} 22. Rxd6 {[%emt 0:00:57]} Rxd6 {[%emt 0:00:09]} 23. Qe8+ {[%emt 0:00:01]} Kg7 {[%emt 0:00:06]} 24. Qe5+ {[%emt 0:00:02]} Rf6 {[%emt 0:00:09]} 25. g4 {[%emt 0:07:13]} h6 {[%emt 0:12:34]} 26. h4 {[%emt 0:03:56]} Kg8 {[%emt 0:04:12]} 27. Qxf6 {[%emt 0:00:06]} Bxe2 {[%emt 0:00:03]} 28. Qf4 {[%emt 0:03:06]} Bd3 {[%emt 0:02:03]} 29. Qe3 {[%emt 0:04:34]} Bc4 {[%emt 0:08:19]} 30. a3 {[%emt 0:05:38]} Be6 {[%emt 0:02:36]} 31. Qxh6 {[%emt 0:00:25]} Bxg4 {[%emt 0:01:34]} 32. Qg5 {[%emt 0:00:30]} Bf5 {[%emt 0:01:40]} 33. Qf6 {[%emt 0:03:18]} c4 {[%emt 0:02:19]} 34. Qd4 {[%emt 0:03:24]} Be6 {[%emt 0:01:45]} 35. Ne4 {[%emt 0:00:06]} Qf5 {[%emt 0:03:36]} 36. Nf6+ {[%emt 0:02:10]} Kf8 {[%emt 0:00:01]} 37. Nh7+ {[%emt 0:00:25]} Ke8 {[%emt 0:00:05]} 38. Nf6+ {[%emt 0:00:27]} Ke7 {[%emt 0:00:12]} 39. Ng8+ {[%emt 0:00:45]} Kf8 {[%emt 0:00:38]} 40. Nf6 {[%emt 0:00:49]} Ke7 {[%emt 0:02:07]} 41. Ne4 {[%emt 0:04:08]} Qg4+ {[%emt 0:04:07]} 42. Kf1 {[%emt 0:00:13]} Qxh4 {[%emt 0:02:42]} 43. Qxa7+ {[%emt 0:02:54]} Kf8 {[%emt 0:00:38]} 44. Qb8+ {[%emt 0:00:59]} Kg7 {[%emt 0:00:02]} 45. Qe5+ {[%emt 0:00:07]} Kf8 {[%emt 0:00:08]} 46. Ke1 {[%emt 0:05:49]} Qh1+ {[%emt 0:08:39]} 47. Kd2 {[%emt 0:00:41]} Qh6+ {[%emt 0:00:43]} 48. Ng5 {[%emt 0:09:10]} Ke7 {[%emt 0:05:12]} 49. Kc3 {[%emt 0:00:46]} Qh1 {[%emt 0:02:32]} 50. Kb4 {[%emt 0:05:07]} Qb7+ {[%emt 0:01:46]} 51. Qb5 {[%emt 0:00:11]} Qxb5+ {[%emt 0:00:28]} 52. Kxb5 {[%emt 0:00:03]} Bd5 {[%emt 0:00:01]} 53. Kc5 {[%emt 0:00:23]} Bg2 {[%emt 0:00:10]} 54. Kd4 {[%emt 0:01:24]} f6 {[%emt 0:01:01]} 55. Ne4 {[%emt 0:00:05]} g5 {[%emt 0:00:29]} 56. a4 {[%emt 0:01:19]} g4 {[%emt 0:00:31]} 57. Nd2 {[%emt 0:00:37]} Ke6 {[%emt 0:00:56]} 58. Nxc4 {[%emt 0:00:23]} Bc6 {[%emt 0:04:33]} 59. a5 {[%emt 0:00:52]} f5 {[%emt 0:02:29]} 60. Ne5 {[%emt 0:01:57]} Bb5 {[%emt 0:00:58]} 61. Ng6 {[%emt 0:01:11]} Kd6 {[%emt 0:00:27]} 62. b4 {[%emt 0:00:14]} Bf1 {[%emt 0:00:47]} 63. Nf4 {[%emt 0:00:37]} Bb5 {[%emt 0:00:32]} 64. Nd5 {[%emt 0:00:11]} Be2 {[%emt 0:00:56]} 65. Nf4 {[%emt 0:02:07]} Bb5 {[%emt 0:00:36]} 66. Nd5 {[%emt 0:00:44]} Be2 {[%emt 0:01:23]} 67. Nc3 {[%emt 0:00:17]} Bf1 {[%emt 0:00:11]} 68. Ke3 {[%emt 0:00:28]} Bc4 {[%emt 0:02:16]} 69. Kf4 {[%emt 0:00:07]} Bd3 {[%emt 0:00:01]} 70. b5 {[%emt 0:01:26]} Kc5 {[%emt 0:00:17]} 71. b6 {[%emt 0:00:34]} Ba6 {[%emt 0:00:42]} 72. Kxf5 {[%emt 0:00:54]} Kb4 {[%emt 0:00:02]} 73. Nd5+ {[%emt 0:01:19]} Kxa5 {[%emt 0:00:19]} 74. Ke5 {[%emt 0:00:00]} Bb7 {[%emt 0:00:17]} 75. Kd6 {[%emt 0:00:00]} Bxd5 {[%emt 0:00:06]} 76. Kxd5 {[%emt 0:00:00]} Kxb6 {[%emt 0:00:04]} 77. Ke5 {[%emt 0:00:04]} Kc6 {[%emt 0:00:01]} 78. Kf5 {[%emt 0:00:05]} Kd6 {[%emt 0:01:57]} 79. Kxg4 {[%emt 0:00:02]} Ke6 {[%emt 0:00:09]} 80. Kg5 {[%emt 0:00:04]} Kf7 {[%emt 0:00:08]} 81. Kf5 {[%emt 0:00:04]} Kf8 {[%emt 0:00:17]} 82. Kf6 {[%emt 0:00:26]} 1-0